Cogmind - Beta 13 @@@ ROGUE MODE // 2024.04.03 @ 09:42:44 Player: TurnLeft25 Result: Destroyed by G-47 Trooper with Particle Gun Performance ------------- Evolutions (1) 500 Regions Visited (5) 1000 Robots Destroyed (30) 150 Value Destroyed (894) 894 Prototype IDs (1) 20 Alien Tech Used (0) 0 Bonus (300) 300 TOTAL SCORE: 2864 Bonus ------- Aligned with FarCom 300 Cogmind --------- Core Integrity 0/400 Matter 285/300 Energy 105/125 System Corruption 0% Temperature Cool (36) Movement Walking (190) Ox1 Location -8/Mines Parts ------- > --- POWER (1) -------- Light Ion Engine > --- PROPULSION (2) --- Aluminum Leg Aluminum Leg > --- UTILITY (4) ------ Heat Sink Large Storage Unit Targeting Computer Core Shielding > --- WEAPON (2) ------- EM Shotgun Heavy Particle Gun > --- INVENTORY (15) --- Aluminum Leg Machine Analyzer Light Armor Plating Hacking Suite Hacking Suite Hacking Suite Hacking Suite Heavy Particle Gun Heavy Particle Gun XL Autogun Array Grenade Launcher Peak State ------------ > --- POWER ------------ Ion Engine > --- PROPULSION ------- Aluminum Leg Aluminum Leg > --- UTILITY ---------- Heat Sink Large Storage Unit Targeting Computer Core Shielding > --- WEAPON ----------- Heavy Particle Gun Heavy Particle Gun > --- INVENTORY -------- Light Ion Engine Aluminum Leg Light Armor Plating Hacking Suite Hacking Suite Hacking Suite Hacking Suite EM Shotgun Heavy Particle Gun Heavy Particle Gun XL Autogun Array Grenade Launcher [Rating: 21] Favorites ----------- Power Ion Engine Engine Ion Engine Propulsion Aluminum Leg Treads Light Treads Leg Aluminum Leg Utility Targeting Computer Device Heat Sink Storage Large Storage Unit Processor Targeting Computer Protection Core Shielding Weapon Heavy Particle Gun Energy Gun Heavy Particle Gun Ballistic Gun Assault Rifle Build | -11 -10 -9 -9 -9 -8 ------- Run | Yrd Mat Mat Min Exi Min Slots Evolved 2 | . . 2 . . . Power . | . . . . . . Propulsion . | . . . . . . Utility 2 | . . 2 . . . Weapon . | . . . . . . Parts Attached 32 | 6 3 21 . . 2 Power 4 | 1 . 2 . . 1 Engine 4 | 1 . 2 . . 1 Core . | . . . . . . Reactor . | . . . . . . Propulsion 7 | 2 . 5 . . . Treads 2 | 2 . . . . . Leg 5 | . . 5 . . . Wheel . | . . . . . . Hover . | . . . . . . Flight . | . . . . . . Utility 10 | 1 2 7 . . . Device 2 | . . 2 . . . Storage 2 | 1 1 . . . . Processor 5 | . 1 4 . . . Hackware . | . . . . . . Protection 1 | . . 1 . . . Artifact . | . . . . . . Weapon 11 | 2 1 7 . . 1 Energy Gun 5 | . . 4 . . 1 Energy Cannon . | . . . . . . Ballistic Gun 6 | 2 1 3 . . . Ballistic Cannon . | . . . . . . Launcher . | . . . . . . Special Weapon . | . . . . . . Impact Weapon . | . . . . . . Slashing Weapon . | . . . . . . Piercing Weapon . | . . . . . . Special Melee Weapon . | . . . . . . Unidentified Prototypes 1 | . . 1 . . . Parts Lost 13 | . . 12 . . 1 Power 2 | . . 2 . . . Propulsion 2 | . . 2 . . . Utility 4 | . . 4 . . . Weapon 5 | . . 4 . . 1 Highest Loss Streak 6 | . . 6 . . 1 To Critical Strikes . | . . . . . . Average Slot Usage (%) 98 | . 99 96 100 100 100 Engine 11 | . 14 10 11 11 11 Treads 6 | . 28 4 . . . Leg 15 | . . 16 22 22 22 Device 6 | . . 4 11 11 11 Storage 11 | . 14 11 11 11 11 Processor 15 | . 13 19 11 11 11 Protection 7 | . . 7 11 11 11 Energy Gun 15 | . . 14 22 22 22 Ballistic Gun 7 | . 28 7 . . . Naked Turns . | . . . . . . Heaviest Build 33 | 13 29 33 33 33 33 Greatest Support 40 | 40 40 40 20 20 20 Greatest Overweight (x) 2 | . . 2 1 1 1 Average Overweight (x) . | . . . 1 1 1 Largest Inventory Capacity 15 | 8 15 15 15 15 15 Average Capacity 14 | 6 11 15 15 15 15 Most Carried 15 | 4 12 15 12 15 15 Average Carried 10 | 1 4 11 12 12 14 Final Capacity 15 | 8 15 15 15 15 15 Final Carried 15 | 1 12 12 12 15 14 Class Distribution -------------------- 70% | Scavenger-Mutant 29% | Mutant Dominant Class ---------------- Mutant | -10/Materials Scavenger-Mutant | -9/Materials Scavenger-Mutant | -9/Mines Scavenger-Mutant | -9/Exiles Scavenger-Mutant | -8/Mines Resources | -11 -10 -9 -9 -9 -8 ----------- Run | Yrd Mat Mat Min Exi Min Matter Collected 764 | 198 240 326 . . . Remotely . | . . . . . . Salvage Created 1065 | . 215 809 . . 41 Parts 59 | . 19 37 . . 3 Haulers Intercepted . | . . . . . . Recyclers Shooed . | . . . . . . Parts Field Recycled . | . . . . . . Retrieved Matter . | . . . . . . Parts Self-Destructed . | . . . . . . Prevented . | . . . . . . Kills | -11 -10 -9 -9 -9 -8 ------- Run | Yrd Mat Mat Min Exi Min Combat Hostiles Destroyed 25 | . 5 19 . . 1 Guns 25 | . 5 19 . . 1 Classes Destroyed 7 | . 3 3 . . 1 Worker 1 | . . 1 . . . Recycler 1 | . . 1 . . . Watcher 3 | . 2 1 . . . Swarmer 4 | . 1 3 . . . Grunt 17 | . 4 13 . . . Duelist 1 | . . . . . 1 Sentry 3 | . . 3 . . . Best Kill Streak 6 | . 6 4 . . 1 Combat Bots Only 3 | . 3 3 . . 1 Max Kills in Single Turn 2 | . 2 1 . . 1 Gunslinging 1 | . 1 . . . . Exploded . | . . . . . . Melee . | . . . . . . Uniques/NPCs Destroyed . | . . . . . . Combat | -11 -10 -9 -9 -9 -8 -------- Run | Yrd Mat Mat Min Exi Min Hostile Shots Fired 214 | . 47 157 . . 10 Missed 53 | . 13 38 . . 2 Damage Taken 2094 | . 373 1548 . . 173 Core 448 | . 44 354 . . 50 Absorbed by Shields . | . . . . . . Redirected to Shielding 35 | . . 24 . . 11 Core Remaining (%) 91 | 100 82 . . . . Volleys Fired 108 | . 25 78 . . 5 Largest 2 | . 2 2 . . 2 Hottest 130 | . 40 130 . . 110 Shots Fired 214 | . 50 155 . . 9 Gun 214 | . 50 155 . . 9 Cannon . | . . . . . . Launcher . | . . . . . . Special . | . . . . . . Kinetic 123 | . 50 73 . . . Thermal 91 | . . 82 . . 9 Explosive . | . . . . . . Electromagnetic . | . . . . . . Robot Hit Streak 13 | . 6 13 . . 6 Robot Miss Streak 6 | . 4 6 . . 2 Penetration Max . | . . . . . . Secondary Targets 4 | . 2 2 . . . Max Gunslinging Chain 1 | . 1 1 . . . Shots Hit Robots 137 | . 34 96 . . 7 Core Hits 56 | . 12 42 . . 2 Critical Kills . | . . . . . . Critical Parts Destroyed 1 | . . 1 . . . Critical Strikes 5 | . . 5 . . . Burn 4 | . . 4 . . . Destroy 1 | . . 1 . . . Melee Attacks . | . . . . . . Impact . | . . . . . . Slashing . | . . . . . . Piercing . | . . . . . . Sneak Attacks . | . . . . . . Combat Hostiles . | . . . . . . Follow-up Attacks . | . . . . . . Damage Inflicted 1975 | . 443 1400 . . 132 Guns 1935 | . 439 1364 . . 132 Cannons . | . . . . . . Explosions . | . . . . . . Melee . | . . . . . . Ramming 40 | . 4 36 . . . Kinetic 935 | . 439 496 . . . Thermal 1000 | . . 868 . . 132 Explosive . | . . . . . . Electromagnetic . | . . . . . . Impact . | . . . . . . Slashing . | . . . . . . Piercing . | . . . . . . Highest Corruption . | . . . . . . Average Corruption . | . . . . . . Corruption Purged . | . . . . . . Corruption Blocked . | . . . . . . Overload Shots . | . . . . . . Overflow Damage . | . . . . . . Projectiles . | . . . . . . Explosions . | . . . . . . Melee . | . . . . . . Knockbacks . | . . . . . . Impact . | . . . . . . Kinetic . | . . . . . . Secondary . | . . . . . . Self-Inflicted Damage . | . . . . . . Shots . | . . . . . . Rammed 1 | . 1 . . . . Targets Rammed 14 | . 1 13 . . . Kicked 13 | . . 13 . . . Crushed . | . . . . . . Highest Temperature 473 | . 7 473 . . 54 Average Temperature 109 | . 4 119 . . 25 Received Heat Transfer 840 | . 198 597 . . 45 Effects 4 | . . 4 . . . Shutdowns 2 | . . 2 . . . Energy Bleed 1 | . . 1 . . . Short Circuit 1 | . . 1 . . . Siege Activations . | . . . . . . Robots Corrupted . | . . . . . . Combat Hostiles . | . . . . . . Parts Fried . | . . . . . . Impact Corruptions . | . . . . . . Robots Melted . | . . . . . . Combat Hostiles . | . . . . . . Parts Melted 4 | . . 4 . . . Heat Transferred 2405 | . . 2146 . . 259 Parts Sabotaged . | . . . . . . Parts Stolen . | . . . . . . Parts Stripped . | . . . . . . Power Chain Reactions . | . . . . . . Alert | -11 -10 -9 -9 -9 -8 ------- Run | Yrd Mat Mat Min Exi Min Peak Influence 224 | . 187 224 33 . 30 Initial 78 | . . 78 33 . . Average 73 | . 50 98 33 . . Maximum Alert Level 1 | . . 1 . . . Low Security (%) 92 | 100 100 87 100 . 100 Level 1 7 | . . 12 . . . Level 2 . | . . . . . . Level 3 . | . . . . . . Level 4 . | . . . . . . Level 5 . | . . . . . . High Security . | . . . . . . Max Security . | . . . . . . Squads Dispatched 6 | . 3 3 . . . Investigation 6 | . 3 3 . . . Extermination . | . . . . . . Reinforcement . | . . . . . . Assault . | . . . . . . Garrison . | . . . . . . Intercept . | . . . . . . Searches Triggered . | . . . . . . Construction Impeded . | . . . . . . Haulers Reinforced . | . . . . . . Active Scanning Responses . | . . . . . . Cargo Convoy Interrupts . | . . . . . . Stealth | -11 -10 -9 -9 -9 -8 --------- Run | Yrd Mat Mat Min Exi Min Distress Signals 3 | . 1 2 . . . Communications Jammed . | . . . . . . Distress Signals . | . . . . . . Times Spotted 44 | . 12 29 . . 3 Peak Tracking Total 8 | . 8 3 . . 3 Tactical Retreats 2 | . 2 . . . . Traps | -11 -10 -9 -9 -9 -8 ------- Run | Yrd Mat Mat Min Exi Min Traps Triggered 3 | . 1 2 . . . Indirectly . | . . . . . . Trap Hack Attempts . | . . . . . . Triggered . | . . . . . . Disarmed 3 | . . 3 . . . Reprogrammed . | . . . . . . Reused . | . . . . . . Traps Extracted . | . . . . . . Installed . | . . . . . . Triggered . | . . . . . . Machines | -11 -10 -9 -9 -9 -8 ---------- Run | Yrd Mat Mat Min Exi Min Machines Disabled . | . . . . . . Max in Single Turn . | . . . . . . Machines Repaired . | . . . . . . Machines Dismantled . | . . . . . . Machines Sabotaged . | . . . . . . Overloaded Fab Kills . | . . . . . . Hacking | -11 -10 -9 -9 -9 -8 --------- Run | Yrd Mat Mat Min Exi Min Machines Accessed 12 | . 5 3 . 4 . Terminals 8 | . 5 3 . . . Fabricators . | . . . . . . Repair Stations . | . . . . . . Recycling Units . | . . . . . . Scanalyzers . | . . . . . . Garrison Access . | . . . . . . Total Hacks 78 | . 14 15 . 49 . Successful 60 | . 4 7 . 49 . Failed 17 | . 10 7 . . . Catastrophic 2 | . 2 . . . . Database Lockouts 1 | . . 1 . . . Manual 1 | . . . . 1 . Terminals 29 | . 14 15 . . . Fabricators . | . . . . . . Repair Stations . | . . . . . . Recycling Units . | . . . . . . Scanalyzers . | . . . . . . Garrison Access . | . . . . . . Terminal Hacks 60 | . 4 7 . 49 . Record 55 | . 1 5 . 49 . Locate Traps 1 | . . 1 . . . Disarm Traps 1 | . . 1 . . . Hauler Manifests 1 | . 1 . . . . Zone Layout 2 | . 2 . . . . Fabricator Hacks . | . . . . . . Repair Station Hacks . | . . . . . . Recycling Unit Hacks . | . . . . . . Scanalyzer . | . . . . . . Garrison Access Hacks . | . . . . . . Unauthorized Hacks . | . . . . . . Terminals . | . . . . . . Fabricators . | . . . . . . Repair Stations . | . . . . . . Recycling Units . | . . . . . . Scanalyzers . | . . . . . . Garrison Access . | . . . . . . Data Cores Recovered . | . . . . . . Used . | . . . . . . Hacking Detections 8 | . 5 3 . . . Full Trace Events 4 | . 2 2 . . . Feedback Events . | . . . . . . Feedback Blocked . | . . . . . . Robot Schematics Acquired . | . . . . . . Robots Built . | . . . . . . Authchips . | . . . . . . Time . | . . . . . . Total Robot Build Rating . | . . . . . . Part Schematics Acquired . | . . . . . . Parts Built . | . . . . . . Authchips . | . . . . . . Time . | . . . . . . Total Part Build Rating . | . . . . . . Parts Repaired . | . . . . . . Time . | . . . . . . Parts Recycled . | . . . . . . Recycled Matter . | . . . . . . Retrieved Matter . | . . . . . . Retrieved Components . | . . . . . . Parts Scanalyzed . | . . . . . . Part Schematics Acquired . | . . . . . . Parts Damaged . | . . . . . . Bothacking | -11 -10 -9 -9 -9 -8 ------------ Run | Yrd Mat Mat Min Exi Min Used RIF Installer . | . . . . . . Robots Hacked . | . . . . . . Non-combat . | . . . . . . Combat . | . . . . . . Robot Hacks Applied . | . . . . . . Relay Couplers Released . | . . . . . . Fabnet Peak Effective % . | . . . . . . Robots Rewired . | . . . . . . Allies Hacked . | . . . . . . Hacks Repelled . | . . . . . . Allies | -11 -10 -9 -9 -9 -8 -------- Run | Yrd Mat Mat Min Exi Min Total Allies . | . . . . . . Largest Group . | . . . . . . Highest-Rated Group . | . . . . . . Highest-Rated Ally . | . . . . . . Total Orders . | . . . . . . Ally Attacks . | . . . . . . Total Damage . | . . . . . . Kills . | . . . . . . Allies Corrupted . | . . . . . . Allies Melted . | . . . . . . Intel | -11 -10 -9 -9 -9 -8 ------- Run | Yrd Mat Mat Min Exi Min Robot Analysis Total . | . . . . . . Derelict Logs Recovered . | . . . . . . Drone Launches . | . . . . . . Drone Recoveries . | . . . . . . Exploration | -11 -10 -9 -9 -9 -8 ------------- Run | Yrd Mat Mat Min Exi Min Turns Passed 3275 | 76 546 1325 80 1087 161 Spaces Moved 1481 | 46 283 462 43 572 75 Core 9 | 9 . . . . . Treads 423 | 37 283 103 . . . Legs 1049 | . . 359 43 572 75 Wheels . | . . . . . . Hover . | . . . . . . Flight . | . . . . . . Fastest Speed 50 | 50 160 160 190 190 190 Average Speed 181 | 138 160 187 190 190 190 Slowest Speed 260 | 160 160 260 190 190 190 Overloaded Moves . | . . . . . . Propulsion Burnouts . | . . . . . . Robots Hopped . | . . . . . . Cave-ins Triggered . | . . . . . . Exploration Rate (%) 35 | 4 47 35 10 91 26 Regions Visited 5 Branch Regions 3 Pre-discovered Areas 1 | . . . . 1 . Known Exits Taken . | . . . . . . Unknown Exits Taken 5 | 1 1 1 1 1 . Scrap Searched 1 | . . . 1 . . Spaces Dug . | . . . . . . Terrain Destroyed . | . . . . . . Melee . | . . . . . . Projectile . | . . . . . . AOE . | . . . . . . Terrain Rammed . | . . . . . . Walls Destroyed . | . . . . . . Machines Disabled . | . . . . . . Actions | -11 -10 -9 -9 -9 -8 --------- Run | Yrd Mat Mat Min Exi Min Total 1845 | 58 325 763 42 573 84 Wait 156 | . . 156 . . . Move 1476 | 45 282 461 42 571 75 Hop . | . . . . . . Pick Up 46 | 7 13 24 . 1 1 Fast Attach . | . . . . . . Attach 25 | 6 1 17 . . 1 Detach . | . . . . . . Swap 7 | . 2 4 . . 1 Drop 13 | . 1 10 . 1 1 Fire 108 | . 25 78 . . 5 Melee . | . . . . . . Ram . | . . . . . . Kick 13 | . . 13 . . . Crush 1 | . 1 . . . . Escape Stasis . | . . . . . . Rewire . | . . . . . . Trap . | . . . . . . Miscellaneous . | . . . . . . Route ------- -11/Scrapyard -10/Materials (discovered 2 exits: *Mat x2) -9/Materials -9/Mines -9/Exiles -8/Mines History --------- Turn | Location | Event 4 | -11/Scrapyard | Discovered new exit (range 15) 77 | -11/Scrapyard | Entered Materials 306 | -10/Materials | Build established: Mutant 349 | -10/Materials | Discovered new exit (range 3) 610 | -10/Materials | Discovered new exit (range 4) 623 | -10/Materials | Entered another Materials area 623 | -9/Materials | Evolved 2 slots: Utility x2 643 | -9/Materials | Central database locked down 914 | -9/Materials | Lost 3 parts (1p1n1w) 1026 | -9/Materials | Core integrity fell below 50% 1057 | -9/Materials | Lost 6 parts (1p1n2u2w) 1353 | -9/Materials | Build established: Scavenger-Mutant 1751 | -9/Materials | Core integrity fell below 20% 1838 | -9/Materials | Discovered new exit (range 8) 1948 | -9/Materials | Entered Mines 2015 | -9/Mines | Deemed a non-threat by the Exiles lab entrance 2017 | -9/Mines | Discovered new exit (range 5) 2028 | -9/Mines | Entered Exiles 2091 | -9/Exiles | Met 8R-AWN 2135 | -9/Exiles | Met EX-HEX 2224 | -9/Exiles | Met EX-DEC 2332 | -9/Exiles | Visited The Gauntlet 2578 | -9/Exiles | Learned location of Zion (-6) 2654 | -9/Exiles | Discovered new exit (range 14) 2762 | -9/Exiles | Met EX-BIN 2798 | -9/Exiles | Aligned with FarCom system 2800 | -9/Exiles | Given EX-Vault access code 2897 | -9/Exiles | Opened EX-Vault 2912 | -9/Exiles | Found Prototype Ballistic Gun 2955 | -9/Exiles | Warned to stay clear of 0b10 Research branches 3115 | -9/Exiles | Left Exiles lab with XL Autogun Array 3115 | -9/Exiles | Entered Mines 3276 | -8/Mines | Destroyed by G-47 Trooper with Particle Gun Last Messages --------------- signals could be picked up there, but you're welcome to try if you really want to. And if we have to leave here due to unforeseen circumstances, don't worry the FarCom system will continue to maintain contact via our distributed network. EX-BIN: And don't even think about spreading that code around. We're gonna change it right after you leave. Most certainly not to something like 1234 which I did last time as a little joke and some thief managed to sneak in here and steal a few of HEX's prototypes. LOCATION=UNKNOWN GOAL=ESCAPE 03115_ Receiving FarCom transmissions... 03229_ T-07 Excavator is excavating. 03239_ Dropped Ion Engine. 03247_ Acquired Machine Analyzer. 03272_ Hvy. Particle Gun destroyed. 03273_ L-31 Rogue destroyed. Map ----- +----------------------------------------------------+ | | | | | | | | | | | | | | | | | | | | | | | | | | | ?????????????????????????????????????????????????? | | ?????????????????????????###?????????????????????? | | ????????????????????????## ##???????????????????? | | ????????????????????????# #???????????????????? | | ????????????????????????# ##????????gg????????? | | ?????????????????????????# #????????g?????????? | | ??????????????????????????# ##?????????????????? | | ??????????????????????????# ##????????????????? | | ?????????????????????????## #????????????????? | | ???????????????????###???# |! #### #???????????? | | ???????????????????# #??# * t #???????????? | | ????????????????????# ### ###### #???????????? | | ????????????????????# k @ ##??????????????????? | | ????????????????????##r g%g###???????????????????? | | ?????????????????????####=##?????????????????????? | | ????????????????????????# #??????????????????????? | | ???????????????????###### #??????????????????????? | | ???????????????????# #??????????????????????? | | ???????????????????# #### #????####??????????????? | | ????????????????????????# ###### ##?????????????? | | ????????????????????????# ##????????????? | | ????????????????????????# ##### ##???????????? | | ????????????????????????# #??## #???????????? | | ????????????????????????# #?## #????????? | | ????????????????????????# ### #???????? | | ????????????????????????# #???????? # | | ????????????????????????##### ##??###?# #? | | ????????????????????????????## ### ## #? | | ?????????????????????????????### #? | | ???????????????????????????????## #?? | | ????????????????????????????????## ##? | | ?????????????????????????????????#### #? | | ????????????????????????????????????# #? | | ???????????????????????????????????## #? | | ???????????????????????????????????# ## ##? | | ???????????????????????????????????# ##??###?? | | ???????????????????????????????????## #???????? | +----------------------------------------------------+ Best States ------------- Heat Dissipation 38 Energy Generation 10 Energy Capacity 250 Matter Stores 300 Matter Capacity 300 Sight Range 16 Robot Scan Range 14 Terrain Scan Density 10 Core Shielding 20 Evasion (%) 50 Targeting Accuracy 5 Recoil Reduction 2 Item Schematics ----------------- None Robot Schematics ------------------ None Fabricated ------------ Nothing Alien Tech Used ----------------- None Achievements -------------- None Challenges ------------ None Game ------ Seed AuthchipCatalystProtomatter Manual? 0 Play Time 00:21:53 Cumulative 5.0 hours Start 2024.04.02 @ 23:22:02 End 2024.04.03 @ 09:42:44 Sessions 3 Manual Loads 0 Difficulty Rogue Special Mode None Game No. 9 Rogue 9 Adventurer 0 Explorer 0 Win Type - Total 0 Types 0/0/0/0/0/0/0/0/0 Lore% 16 Gallery% 13 Achievement% 12 Wizard Run 0 Options --------- Layout 1 ASCII 0 Keyboard 0 Movement Mouse Keybinds 0 Fullscreen 1 Font 24/Smallcaps Map View 50x40 Zoom Use 0% Tactical HUD 1 Map Filters NONE Filters NONE Steam 1 RUN: d5d31018-3a4a-47bb-9f34-d10d3d98abf6